bitfinex/quotes_ETHUSD_20260113
["timestamp","ask_amount","ask_price","bid_price","bid_amount"]
[1768303379699,0.29845768,3133.5,3133.4,0.01404995]
[1768303380516,0.29845768,3133.5,3133.4,0.9629542]
[1768303380826,0.001,3133.6,3133.5,0.94890425]
[1768303380987,0.001,3133.9,3133.5,0.94890425]
[1768303381916,0.001,3133.9,3133.4,0.01404995]
[1768303383923,0.001,3133.9,3133.4,0.9629542]
[1768303385029,0.001,3133.9,3133.5,0.95430087]
[1768303390528,0.001,3133.9,3133.5,4.14561625]
[1768303390756,0.001,3133.9,3133.6,0.95430087]
[1768303392804,0.001,3133.9,3133.4,0.96835082]
[1768303393331,0.001,3133.9,3133.4,4.15976358]
[1768303394301,0.001,3133.9,3133.5,0.95430087]
[1768303394509,0.001,3133.9,3133.5,4.14559057]
[1768303395041,0.001,3133.9,3133.5,0.95430087]
[1768303395545,0.001,3133.9,3133.5,4.14561462]
[1768303396047,0.001,3133.9,3133.5,0.95430087]
[1768303396244,0.001,3133.9,3133.5,4.14561899]
[1768303396955,0.001,3133.9,3133.6,0.92603493]
[1768303397116,0.001,3133.9,3133.7,4.11715086]
[1768303398450,0.001,3133.9,3133.8,0.92603493]
[1768303398947,0.2518052,3134.1,3133.5,7.30867266]
[1768303399347,0.0008052,3134.1,3133.5,7.30867266]
[1768303399546,0.0008052,3134.1,3133.6,0.92603493]
[1768303399729,0.0008052,3134.1,3133.7,0.92603493]
[1768303400322,1.15466504,3134.6,3133.9,3.19091228]
[1768303400525,4.34488388,3134.6,3133.9,3.19091228]
[1768303401835,0.90366504,3134.5,3133.9,3.19091228]
[1768303402968,0.90366504,3134.5,3133.8,0.92603493]
[1768303402969,3.44121884,3134.6,3134.0,0.92603493]
[1768303403533,0.001,3134.2,3134.0,0.92603493]
[1768303405367,0.001,3134.2,3134.0,4.11684386]
[1768303405871,0.001,3134.2,3134.0,0.92603493]
[1768303406441,0.001,3134.2,3134.0,4.11681803]
[1768303407462,3.19012448,3134.7,3134.1,0.92603493]
[1768303407666,3.19012448,3134.7,3134.0,3.1907831]
[1768303407667,0.90366504,3134.7,3134.0,3.1907831]
[1768303410362,4.09377905,3134.7,3134.0,3.1907831]
[1768303411174,4.09377905,3134.7,3133.9,3.19086059]
[1768303411175,0.90366504,3134.6,3133.9,3.19086059]
[1768303411369,0.90366504,3134.6,3133.8,3.19098104]
[1768303411370,0.90366504,3134.6,3133.8,3.19093161]
[1768303411672,0.90366504,3134.4,3133.9,3.1909121]
[1768303411869,0.93554582,3134.5,3133.9,3.1909121]
[1768303412872,4.12589935,3134.5,3133.8,3.1910141]
[1768303413469,0.93554582,3134.5,3133.8,3.1910141]
[1768303414839,0.93554582,3134.5,3133.7,7.35797223]
[1768303415039,0.93554582,3134.5,3134.1,0.002]
[1768303415242,0.001,3134.2,3134.1,0.002]
[1768303422885,0.93007568,3134.4,3134.1,0.002]
[1768303423066,0.03188078,3134.6,3134.1,0.002]
[1768303423866,0.03188078,3134.6,3134.1,0.97693606]
[1768303424080,1.88721956,3134.9,3134.1,0.97693606]
[1768303424249,3.18992131,3134.9,3134.1,0.97693606]
[1768303424588,4.11999699,3134.9,3134.1,0.97693606]
[1768303424789,0.93007568,3134.8,3134.1,0.002]
[1768303424964,0.93007568,3134.8,3134.1,3.1927033]
[1768303425888,3.18992131,3134.9,3134.2,0.97493606]
[1768303426486,4.11999699,3134.9,3134.2,0.97493606]
[1768303426788,4.11999699,3134.9,3134.2,4.16548962]
[1768303426995,0.93007568,3134.8,3134.1,0.002]
[1768303427156,0.96195646,3134.8,3134.1,3.19270613]
[1768303427774,0.001,3134.6,3134.1,3.19270613]
[1768303428088,0.001,3134.6,3134.2,3.19059851]
[1768303429881,0.001,3134.6,3134.1,3.19270865]
[1768303431583,0.001,3134.6,3134.2,0.97493606]
[1768303432088,0.001,3134.6,3134.2,4.16552496]
[1768303432500,0.001,3134.6,3134.2,3.1905889]
[1768303434193,0.001,3134.6,3134.3,0.97493606]
[1768303434391,3.18981711,3135.0,3134.3,0.97493606]
[1768303434562,0.93007568,3134.9,3134.2,4.16552496]
[1768303434761,0.93007568,3134.9,3134.2,7.38803787]
[1768303434964,0.93088032,3135.1,3134.3,0.97493606]
[1768303435156,4.12058676,3135.1,3134.3,0.97493606]
[1768303435407,0.93088032,3135.1,3134.3,0.97493606]
[1768303435607,0.93088032,3135.1,3134.2,11.26945013]
[1768303436093,0.93088032,3135.1,3134.3,0.97493606]
[1768303436294,0.00080464,3135.1,3134.3,0.97493606]
[1768303437799,0.00080464,3135.1,3134.4,5.86319044]
[1768303438093,0.00080464,3135.1,3134.6,0.97493606]
[1768303438295,0.00080464,3135.1,3134.2,0.97493606]
[1768303438296,5.8191347,3135.1,3134.2,0.97493606]
[1768303438479,4.88825438,3134.9,3134.2,4.16548617]
[1768303438676,5.81833006,3134.9,3134.2,0.97493606]
[1768303438984,0.93007568,3134.6,3134.1,0.002]
[1768303439781,4.88825438,3134.7,3134.1,0.002]
[1768303439979,0.93007568,3134.6,3134.1,0.002]
[1768303442689,3.19009867,3134.7,3134.1,0.002]
[1768303442888,4.1530147,3134.8,3134.1,0.002]
[1768303443207,3.22293902,3134.8,3134.1,0.002]
[1768303443403,0.93007568,3134.7,3134.1,0.002]
[1768303444110,0.001,3134.8,3134.2,4.88825438]
[1768303444310,0.00080464,3135.1,3134.5,3.19030148]
[1768303444498,0.00080464,3135.1,3134.6,0.97493606]
[1768303444914,0.95060344,3135.1,3134.5,6.38060296]
[1768303445216,0.00080464,3135.1,3134.6,0.97294229]
[1768303445416,0.95060344,3135.1,3134.5,3.19030148]
[1768303446515,0.95060344,3135.1,3134.5,6.38060296]
[1768303446698,0.00080464,3135.1,3134.6,0.97294229]
[1768303447078,0.00080464,3135.1,3134.5,6.38060296]
[1768303447516,0.00080464,3135.1,3134.6,0.97294229]
[1768303447698,0.00080464,3135.1,3134.8,0.97294229]
[1768303448620,0.00080464,3135.1,3134.5,6.38060296]
[1768303449115,0.00080464,3135.1,3134.6,0.97294229]
[1768303449522,0.00080464,3135.1,3134.7,3.19009793]
[1768303450717,0.00080464,3135.1,3134.5,6.38060296]
[1768303450915,0.00080464,3135.1,3134.6,5.86119667]
[1768303451123,0.9497988,3135.4,3134.7,0.97294229]
[1768303451331,0.9497988,3135.4,3134.7,0.97374701]
[1768303451490,0.9497988,3135.4,3134.8,0.002]
[1768303452836,3.47298196,3135.5,3134.9,0.97294229]
[1768303453425,0.28368158,3135.5,3134.9,0.97294229]
[1768303453730,0.2518008,3135.5,3134.9,0.97294229]
[1768303453902,0.28368158,3135.5,3134.9,0.97294229]
[1768303454099,0.2518008,3135.5,3134.9,0.97294229]
[1768303454522,0.2518008,3135.5,3135.1,0.90076723]
[1768303454932,0.24380081,3135.5,3135.4,0.90076723]
[1768303455137,0.24173586,3135.5,3135.4,0.90076723]
[1768303455289,0.24173586,3135.5,3135.4,0.89870228]
[1768303455630,0.00281006,3135.9,3135.4,0.89870228]
[1768303456724,0.00281006,3135.9,3135.3,0.90076723]
[1768303457039,0.00281006,3135.9,3135.5,0.90076723]
[1768303458549,0.00281006,3135.9,3135.6,0.90076723]
[1768303459324,4.89106444,3135.9,3135.3,0.90076723]
[1768303460327,0.00281006,3135.9,3135.5,0.90076723]
[1768303464637,0.002,3135.6,3135.5,0.90076723]
[1768303467144,0.002,3135.6,3135.3,0.90076723]
[1768303467507,0.92397633,3135.6,3135.1,6.37938182]
[1768303467707,0.002,3135.6,3135.2,0.90076723]
[1768303469155,0.002,3135.6,3135.2,3.18953861]
[1768303469156,0.92197633,3135.5,3135.2,3.18953861]
[1768303469650,0.002,3135.6,3135.2,3.18953861]
[1768303470233,0.92397633,3135.6,3135.2,3.18953861]
[1768303471058,0.002,3135.6,3135.2,3.18953861]
[1768303471261,0.92397633,3135.6,3135.1,3.18967207]
[1768303471741,0.002,3135.6,3135.1,3.18967207]
[1768303472055,0.92397633,3135.6,3135.2,3.18958299]
[1768303472456,0.92397633,3135.6,3135.1,3.18966704]
[1768303472956,0.92397633,3135.6,3135.1,3.11647434]
[1768303473170,0.92197633,3134.9,3134.7,0.00080472]
[1768303473323,0.92197633,3134.9,3134.5,0.90276723]
[1768303473324,4.82938583,3134.9,3134.5,0.90276723]
[1768303473665,0.00080472,3135.1,3134.5,0.90276723]
[1768303473666,4.8890591,3135.1,3134.5,0.90276723]
[1768303473841,4.88825438,3134.9,3134.5,0.002]
[1768303474038,4.88825438,3134.7,3134.5,0.002]
[1768303474360,0.48882544,3134.8,3134.5,0.002]
[1768303474525,0.92197633,3134.7,3134.5,0.002]
[1768303474726,0.48882544,3134.8,3134.2,0.9680834]
[1768303474926,1.41789557,3134.8,3134.0,0.9680834]
[1768303475124,0.92907013,3134.7,3134.0,0.9680834]
[1768303475326,0.92907013,3134.5,3133.9,0.0008012]
[1768303475549,3.1901997,3134.6,3133.9,0.0008012]
[1768303475818,3.1901997,3134.6,3134.1,0.9700834]
[1768303476030,3.1901997,3134.6,3134.1,0.002]
[1768303476235,13.09834679,3134.6,3134.1,0.002]
[1768303477144,12.16927666,3134.6,3134.1,0.002]
[1768303478663,4.09082258,3134.6,3134.1,0.002]
[1768303478980,7.28102228,3134.6,3134.1,0.002]
[1768303480072,4.09082258,3134.6,3134.1,0.002]
[1768303480242,4.09082258,3134.6,3134.1,0.9700834]
[1768303480868,4.09083747,3134.6,3134.1,0.9700834]
[1768303481038,3.19021459,3134.6,3134.1,0.9700834]
[1768303481374,3.441125,3134.7,3134.1,0.9700834]
[1768303481677,0.251,3134.8,3134.1,0.9700834]
[1768303481829,3.44101312,3134.8,3134.1,0.9700834]
[1768303482993,3.4728939,3134.8,3134.1,0.9700834]
[1768303487591,11.5511614,3134.8,3134.1,0.9700834]
[1768303487780,12.86300717,3134.8,3134.1,0.9700834]
[1768303488908,12.86300717,3134.8,3134.4,0.002]
[1768303489202,0.001,3134.5,3134.4,0.002]
[1768303506427,0.001,3134.5,3134.4,0.92185712]
[1768303506585,0.001,3134.5,3134.4,0.002]
[1768303507942,0.001,3134.5,3134.4,0.92185712]
[1768303509127,3.19050187,3135.1,3134.5,0.91985712]
[1768303509306,0.93955038,3135.0,3134.4,0.002]
[1768303510757,0.00080472,3135.1,3134.4,0.92185712]
[1768303511038,0.9403551,3135.1,3134.4,0.92185712]
[1768303511341,0.9403551,3135.1,3134.5,3.19030148]
[1768303512311,0.9403551,3135.1,3134.6,0.91985712]
[1768303512312,0.00080472,3135.1,3134.6,0.91985712]
[1768303512507,0.00080472,3135.1,3134.5,3.19030148]
[1768303512702,0.9403551,3135.1,3134.5,3.19030148]
[1768303513456,0.001,3134.8,3134.5,3.19030148]
[1768303513735,0.001,3134.8,3134.4,7.30266098]
[1768303514539,0.001,3134.8,3134.5,0.91985712]
[1768303515250,0.001,3134.8,3134.4,6.38280386]
[1768303515452,0.001,3134.8,3134.4,7.37640828]
[1768303515951,0.001,3134.8,3134.5,0.99360442]
[1768303516763,0.001,3134.8,3134.4,3.1924006]
[1768303517060,0.95086375,3134.8,3134.4,0.002]
[1768303518754,0.001,3134.8,3134.4,0.002]
[1768303519053,0.001,3134.8,3134.4,0.99560442]
[1768303520958,0.001,3134.8,3134.4,3.19237208]
[1768303524762,0.001,3134.5,3134.4,3.19237208]
[1768303525063,0.001,3134.8,3134.4,4.1859765]
[1768303528140,0.001,3134.8,3134.5,0.99360442]
[1768303531173,0.001,3134.8,3134.4,3.19237208]
[1768303531473,0.001,3134.8,3134.5,0.99360442]
[1768303532972,0.001,3134.8,3134.6,0.99360442]
[1768303533775,0.001,3134.8,3134.5,3.19028265]
[1768303533956,0.001,3134.8,3134.6,0.99360442]
[1768303540851,0.91941165,3134.8,3134.5,3.19025504]
[1768303541280,0.001,3134.8,3134.4,3.19236205]
[1768303541580,0.91941165,3134.8,3134.4,3.19236205]
[1768303541771,0.001,3134.8,3134.5,3.1902424]
[1768303541976,0.001,3134.8,3134.4,3.19235408]
[1768303542174,0.91941165,3134.8,3134.4,0.002]
[1768303543181,0.001,3134.8,3134.4,0.002]
[1768303543577,0.91941165,3134.8,3134.4,0.002]
[1768303546173,0.001,3134.8,3134.4,0.002]
[1768303548284,0.00080472,3135.1,3134.4,1.02613882]
[1768303548515,0.00080472,3135.1,3134.5,4.18253627]
[1768303549487,0.00080472,3135.1,3134.5,0.99223479]
[1768303550587,0.00080472,3135.1,3134.5,4.18252873]
[1768303550888,0.00080472,3135.1,3134.6,0.99223479]
[1768303554761,0.00080472,3135.1,3134.4,0.002]
[1768303554762,0.91841165,3135.0,3134.4,0.002]
[1768303555060,0.00080472,3135.1,3134.5,0.99223479]
[1768303555284,0.91921637,3135.1,3134.4,0.002]
[1768303556089,0.00080472,3135.1,3134.4,0.002]
[1768303556299,5.80645386,3135.1,3134.4,0.002]
[1768303556591,4.88804221,3135.1,3134.5,0.99223479]
[1768303556893,8.99622322,3135.1,3134.4,0.002]
[1768303557066,0.91841165,3135.0,3134.4,0.002]
[1768303557365,0.91841165,3135.0,3134.4,3.19239263]
[1768303557562,8.07781157,3135.1,3134.4,3.19239263]
[1768303557797,8.07781157,3135.1,3134.4,4.18462742]
[1768303558091,8.07781157,3135.1,3134.5,0.99223479]
[1768303558280,0.91841165,3135.0,3134.4,0.002]
[1768303560103,8.07781157,3135.1,3134.4,0.99423479]
[1768303560465,0.91841165,3135.0,3134.7,0.002]
[1768303560665,0.001,3134.8,3134.7,0.002]
[1768303561773,0.91941165,3134.8,3134.7,0.002]
[1768303561977,0.001,3134.8,3134.7,0.002]
[1768303562998,0.91941165,3134.8,3134.7,0.002]
[1768303563189,0.001,3134.8,3134.7,0.002]
[1768303564999,0.001,3134.8,3134.7,0.93021098]
[1768303565165,0.001,3134.8,3134.7,0.002]
[1768303570505,0.001,3134.8,3134.7,0.93021098]
[1768303574006,0.00080472,3135.1,3134.8,0.92821098]
[1768303582610,0.00080472,3135.1,3134.9,0.03189894]
[1768303582797,0.00080472,3135.1,3135.0,0.98238616]
[1768303583913,0.00080472,3135.1,3134.7,0.03390097]
[1768303583914,0.00080472,3135.1,3134.7,0.002]
[1768303584121,0.00080472,3135.1,3134.9,0.98238616]
[1768303584814,0.00080472,3135.1,3134.7,3.19208599]
[1768303585205,0.00080472,3135.1,3134.7,4.17447215]
[1768303585706,0.00080472,3135.1,3134.7,0.002]
[1768303585906,0.00080472,3135.1,3134.7,0.98438616]
[1768303586127,0.00080472,3135.1,3134.7,0.002]
[1768303586507,0.00080472,3135.1,3134.8,0.98238616]
[1768303587035,0.00080472,3135.1,3134.7,0.002]
[1768303587215,0.00080472,3135.1,3134.8,0.98238616]
[1768303587831,0.00080472,3135.1,3134.7,3.19207798]
[1768303588036,0.00080472,3135.1,3134.8,8.07721971]
[1768303588235,0.002,3135.6,3135.1,0.98238616]
[1768303588736,0.002,3135.6,3135.2,3.18958918]
[1768303588910,0.002,3135.6,3135.3,0.98238616]
[1768303590746,0.95186375,3135.6,3135.1,3.18969091]
[1768303593019,0.002,3135.6,3135.1,4.17207707]
[1768303593325,0.002,3135.6,3135.2,0.98238616]
[1768303593524,0.002,3135.6,3135.1,3.18969091]
[1768303593746,0.95186375,3135.6,3135.1,3.18969091]
[1768303594332,0.002,3135.6,3135.2,0.98238616]
[1768303594538,0.002,3135.6,3135.1,3.18969091]
[1768303595214,0.95186375,3135.6,3135.1,3.18969091]
[1768303595557,0.002,3135.6,3135.2,0.9098127]
[1768303596047,0.001,3135.3,3135.2,0.9098127]
[1768303596214,0.002,3135.6,3135.0,4.88723749]
[1768303596215,0.95186375,3135.6,3135.0,3.18975132]
[1768303596616,0.002,3135.6,3135.0,4.09956402]
[1768303597017,0.002,3135.6,3135.0,3.22164924]
[1768303597557,0.002,3135.6,3135.0,4.13146194]
[1768303598576,0.95186375,3135.6,3135.0,3.22164924]
[1768303598959,0.002,3135.6,3135.0,3.22164924]
[1768303599130,0.002,3135.6,3135.0,4.13146194]
[1768303599530,0.95186375,3135.6,3135.0,3.22164924]
[1768303599862,0.002,3135.6,3135.0,3.22164924]
[1768303600031,0.002,3135.6,3135.2,0.9098127]
[1768303600230,0.002,3135.6,3135.3,0.9098127]
[1768303600434,0.95186375,3135.6,3135.1,3.18965816]
[1768303601468,0.002,3135.6,3135.1,4.09947086]
[1768303601843,0.95186375,3135.6,3134.9,6.37978882]
[1768303602031,0.95186375,3135.6,3134.9,6.41168776]
[1768303602232,0.002,3135.6,3135.0,0.9098127]
[1768303602727,0.95186375,3135.6,3135.1,3.18969091]
[1768303604971,0.002,3135.6,3135.1,3.18969091]
[1768303605184,0.002,3135.6,3135.1,6.37938182]
[1768303605677,0.002,3135.6,3135.2,4.88723749]
[1768303606374,0.002,3135.6,3135.3,0.9098127]
[1768303606765,0.002,3135.6,3135.2,4.88723749]
[1768303607577,0.002,3135.6,3135.3,3.18948744]
[1768303608075,0.002,3135.6,3135.2,8.07677326]
[1768303608274,0.002,3135.6,3135.4,0.9098127]
[1768303608446,0.002,3135.6,3135.5,0.9098127]
[1768303608848,0.002,3135.6,3135.3,0.002]
[1768303609047,0.002,3135.6,3135.4,0.9098127]
[1768303609566,0.002,3135.6,3135.3,0.002]
[1768303609765,0.002,3135.6,3135.3,0.9118127]
[1768303610278,0.002,3135.6,3135.3,0.002]
[1768303610485,0.002,3135.6,3135.3,0.9118127]
[1768303611581,0.002,3135.6,3135.3,0.002]
[1768303611985,0.002,3135.6,3135.3,0.9118127]
[1768303612282,0.002,3135.6,3135.4,0.9098127]
[1768303612652,0.002,3135.6,3135.4,5.79705019]
[1768303612850,0.00281006,3135.9,3135.6,0.9098127]
[1768303613061,0.00281006,3135.9,3135.5,0.03189284]
[1768303613782,0.00281006,3135.9,3135.5,0.94170554]
[1768303614180,0.95267381,3135.9,3135.5,0.03189284]
[1768303615071,0.95267381,3135.9,3135.3,0.002]
[1768303615450,0.95267381,3135.9,3135.4,3.18933422]
[1768303615784,0.00281006,3135.9,3135.5,3.18923123]
[1768303615978,0.00281006,3135.9,3135.4,3.18933235]
[1768303616491,0.00281006,3135.9,3135.5,0.9098127]
[1768303616676,0.00281006,3135.9,3135.6,0.9098127]
[1768303619488,0.00281006,3135.9,3135.6,4.09898238]
[1768303620285,0.00281006,3135.9,3135.6,0.9098127]
[1768303620655,0.00080416,3136.0,3135.9,0.9098127]
[1768303620870,0.002,3136.2,3135.7,0.03187226]
[1768303621104,0.002,3136.2,3135.7,0.9098127]
[1768303621407,0.002,3136.2,3135.9,0.9098127]
[1768303622053,0.002,3136.5,3136.2,0.9098127]
[1768303622453,0.0028028,3136.6,3135.9,5.82562276]
[1768303622656,0.0028028,3136.6,3136.0,7.28736372]
[1768303623670,0.95466655,3136.6,3135.9,3.18886446]
[1768303624796,0.91827618,3136.5,3135.8,3.18897888]
[1768303624984,3.19097338,3136.6,3135.9,0.96366078]
[1768303625293,0.0028028,3136.6,3135.9,0.96366078]
[1768303625499,0.0028028,3136.6,3136.1,0.96366078]
[1768303633323,0.0028028,3136.6,3136.4,0.001]
[1768303633983,0.92107898,3136.6,3136.0,3.18875637]
[1768303634316,0.0028028,3136.6,3136.1,0.96366078]
[1768303645097,0.0028028,3136.6,3136.4,0.001]
[1768303645324,0.0028028,3136.6,3136.1,0.96366078]
[1768303645325,0.64067553,3136.6,3136.1,0.96366078]
[1768303645599,0.0028028,3136.6,3136.1,0.96366078]
[1768303649729,0.95086375,3136.5,3135.7,3.4400394]
[1768303649898,0.95086375,3136.5,3135.7,4.43180492]
[1768303650095,0.95086375,3136.5,3135.6,0.00080424]
[1768303650096,5.83478504,3136.3,3135.6,0.00080424]
[1768303650300,6.44336354,3136.3,3135.6,0.00080424]
[1768303650714,3.18857215,3136.2,3135.6,0.00080424]
[1768303651213,4.1394359,3136.2,3135.6,0.00080424]
[1768303651942,8.6810144,3136.3,3135.6,0.00080424]
[1768303654554,8.6810144,3136.3,3135.6,0.99256976]
[1768303656751,8.6810144,3136.3,3135.9,0.001]
[1768303656925,1.28202829,3136.2,3135.9,0.001]
[1768303659048,4.47066648,3136.2,3135.9,0.001]
[1768303663045,0.91716441,3136.1,3135.9,0.001]
[1768303664259,1.16816441,3136.0,3135.0,0.002]
[1768303664426,1.16816441,3136.0,3135.1,0.90325187]
[1768303664427,0.75455442,3135.9,3135.1,0.90325187]
[1768303664733,0.91796865,3136.0,3135.1,0.90325187]
[1768303664948,0.00080424,3136.0,3135.1,0.90325187]
[1768303665368,0.91796865,3136.0,3135.1,3.18964225]
[1768303665548,0.91796865,3136.0,3135.1,4.09289412]
[1768303666053,0.91796865,3136.0,3135.2,0.90325187]
[1768303668270,4.1060416,3135.9,3135.2,4.09284044]
[1768303668475,4.1060416,3135.9,3135.4,0.001]
[1768303672681,3.18887719,3135.9,3135.4,0.001]
[1768303673382,9.06181525,3135.9,3135.4,0.001]
[1768303674156,0.98783823,3135.9,3135.4,0.90425187]
[1768303674357,3.18966832,3136.0,3135.4,0.90425187]
[1768303675257,0.91716441,3135.9,3135.4,0.001]
[1768303676991,8.99122911,3135.9,3135.4,0.001]
[1768303677496,4.10612928,3135.9,3135.4,0.001]
[1768303679289,3.18896487,3135.9,3135.4,0.001]
[1768303679490,4.40705461,3135.9,3135.4,0.001]
[1768303679690,0.002,3135.6,3135.4,0.001]
[1768303684694,0.002,3135.6,3135.4,0.99982847]
[1768303693906,0.002,3135.6,3135.4,0.001]
[1768303694697,0.002,3135.6,3135.4,0.99982847]
[1768303696717,0.002,3135.6,3135.4,0.001]
[1768303697214,0.002,3135.6,3135.4,0.95260664]
[1768303698740,0.002,3135.6,3135.4,0.001]
[1768303699218,0.002,3135.6,3135.4,0.95260664]
[1768303699890,0.002,3135.6,3135.4,0.001]
[1768303701116,0.002,3135.6,3135.4,0.95260664]
[1768303702203,0.002,3135.6,3135.4,0.001]
[1768303706813,0.002,3135.6,3135.4,0.95260664]
[1768303712302,0.002,3135.6,3135.4,4.1419294]
[1768303718140,0.002,3135.6,3135.5,0.92424038]
[1768303726548,0.002,3135.6,3135.4,0.001]
[1768303726719,0.95205951,3135.6,3135.4,0.001]
[1768303730043,0.002,3135.6,3135.4,0.001]
[1768303762887,0.002,3135.6,3135.4,0.99376536]
[1768303764189,0.002,3135.6,3135.4,0.001]
[1768303764895,0.002,3135.6,3135.2,0.251]
[1768303765196,0.002,3135.6,3135.2,1.24376536]
[1768303766555,0.95043395,3135.6,3135.2,0.251]
[1768303772190,0.002,3135.6,3135.2,1.24376536]
[1768303773196,0.002,3135.6,3135.3,0.99276536]
[1768303774968,0.002,3135.6,3135.2,0.251]
[1768303775294,0.002,3135.6,3135.3,0.92939119]
[1768303779306,0.002,3135.6,3135.1,0.92939119]
[1768303779592,0.002,3135.6,3135.1,1.18039119]
[1768303779976,0.002,3135.6,3135.2,0.92939119]
[1768303780798,0.002,3135.6,3135.1,0.251]
[1768303786115,0.002,3135.6,3135.2,0.92939119]
[1768303787579,0.002,3135.6,3135.4,0.001]
[1768303797327,4.88774067,3135.6,3135.4,0.001]
[1768303802919,0.002,3135.6,3135.4,0.001]
[1768303803120,0.002,3135.6,3135.4,0.93039119]
[1768303806631,0.002,3135.6,3135.4,0.001]
[1768303806936,0.92631108,3135.6,3135.4,0.001]
[1768303807225,0.002,3135.6,3135.4,0.001]
[1768303809735,0.002,3135.6,3135.4,0.94172723]
[1768303812939,0.002,3135.6,3135.4,0.001]
[1768303849197,0.31910806,3135.5,3134.9,0.90457477]
[1768303849492,4.88574067,3135.1,3134.9,0.90457477]
[1768303849701,4.88574067,3135.1,3134.5,1.07187485]
[1768303849702,4.38274067,3135.1,3134.5,1.07187485]
[1768303849999,0.0008048,3135.1,3134.5,1.32287485]
[1768303850167,4.88574067,3134.7,3134.3,0.25181047]
[1768303850876,5.84552207,3134.7,3134.3,0.25181047]
[1768303851087,4.88574067,3134.7,3134.3,0.25181047]
[1768303851479,8.07583949,3134.7,3134.3,0.25181047]
[1768303852086,4.88574067,3134.7,3134.3,0.25181047]
[1768303852299,4.88574067,3134.5,3134.0,0.75038524]
[1768303852594,4.88574067,3134.5,3133.9,0.0008012]
[1768303852975,3.19040326,3134.4,3133.9,0.0008012]
[1768303853362,0.9597814,3134.2,3133.9,0.0008012]
[1768303853601,5.47029288,3134.1,3133.8,0.002]
[1768303855500,0.58455221,3134.1,3133.8,0.002]
[1768303855704,5.10752589,3134.2,3133.8,0.002]
[1768303856296,0.50300003,3134.0,3133.8,0.002]
[1768303856668,1.46278143,3134.0,3133.8,0.002]
[1768303856878,0.9597814,3133.9,3133.8,0.002]
[1768303857081,0.9597814,3133.9,3133.7,0.00280528]
[1768303857370,0.9597814,3133.9,3133.4,0.002]
[1768303857673,0.9597814,3133.7,3133.4,0.002]
[1768303858284,4.88574067,3133.8,3133.4,0.002]
[1768303858484,4.88574067,3133.6,3133.2,0.002]
[1768303859079,0.50300003,3133.5,3133.2,0.002]
[1768303860099,0.50300003,3133.5,3133.2,0.90757477]
[1768303860303,0.42975142,3133.5,3133.2,0.90757477]
[1768303861383,0.9572691,3133.8,3133.3,0.90557477]
[1768303861711,0.00080528,3134.1,3133.3,0.90557477]
[1768303862009,0.95722328,3134.0,3133.3,0.90557477]
[1768303863390,0.95722328,3134.0,3133.4,0.90557477]
[1768303864575,4.14804724,3134.0,3133.4,0.90557477]
[1768303864996,3.19082396,3134.0,3133.4,0.90557477]
[1768303865184,0.95722328,3133.9,3133.4,0.90557477]
[1768303865597,4.14814683,3133.9,3133.2,0.98130091]
[1768303865999,5.10887079,3133.9,3133.2,0.002]
[1768303866509,5.10887079,3133.9,3133.2,3.19361523]
[1768303868089,5.10887079,3133.9,3133.2,4.17291614]
[1768303868415,5.10887079,3133.9,3133.7,0.002]
[1768303868709,1.91794724,3133.9,3133.7,0.002]
[1768303869506,0.95722328,3133.9,3133.7,0.002]
[1768303874285,1.91794724,3133.9,3133.7,0.002]
[1768303877925,5.10886771,3133.9,3133.7,0.002]
[1768303878225,4.14814375,3133.9,3133.7,0.002]
[1768303878519,0.95722328,3133.9,3133.7,0.002]
[1768303881118,4.1481564,3133.9,3133.7,0.002]
[1768303881487,0.95722328,3133.9,3133.7,0.002]
[1768303881689,4.14816724,3133.9,3133.7,0.002]
[1768303882839,0.95722328,3133.9,3133.7,0.002]
[1768303883238,4.14814084,3133.9,3133.7,0.002]
[1768303886211,0.95722328,3133.9,3133.7,0.002]
[1768303887347,4.14814817,3133.9,3133.7,0.002]
[1768303889543,0.95722328,3133.9,3133.7,0.002]
[1768303902024,3.22341541,3134.1,3133.7,0.002]
[1768303902025,0.00080528,3134.1,3133.7,0.002]
[1768303902220,0.95720496,3134.0,3133.7,0.9967481]
[1768303902532,0.00080528,3134.1,3133.7,0.9967481]
[1768303904669,0.00080528,3134.1,3133.7,0.002]
[1768303905249,0.00080528,3134.1,3133.7,0.9967481]
[1768303907332,0.00080528,3134.1,3133.7,0.002]
[1768303907533,0.00080528,3134.1,3133.7,0.9967481]
[1768303908998,0.00080528,3134.1,3133.7,0.002]
[1768303912942,0.00080528,3134.1,3133.7,0.9967481]
[1768303913778,0.00080528,3134.1,3133.7,0.002]
[1768303913965,0.00080528,3134.1,3133.7,0.9967481]
[1768303916577,0.00080528,3134.1,3133.7,0.002]
[1768303916776,0.001,3133.8,3133.7,0.002]
[1768303939106,0.00080528,3134.1,3133.7,0.002]
[1768303939313,0.98638345,3134.0,3133.7,0.002]
[1768303939598,0.00080528,3134.1,3133.7,0.002]
[1768303940697,0.98718873,3134.1,3133.7,0.002]
[1768303946010,0.00080528,3134.1,3133.7,0.002]
[1768303948915,0.00080528,3134.1,3133.7,5.88558942]
[1768303949216,0.251,3134.6,3133.7,5.88558942]
[1768303949217,4.17642282,3134.8,3134.0,0.99353319]
[1768303949387,4.2083036,3134.8,3134.0,0.99353319]
[1768303950483,4.2083036,3134.8,3134.0,4.18433853]
[1768303950683,0.98638345,3134.7,3134.0,4.18433853]
[1768303950883,0.03188078,3134.6,3134.0,4.18433853]
[1768303951312,0.98638345,3134.5,3133.8,0.251]
[1768303951719,0.98638345,3134.5,3133.8,3.44195057]
[1768303952015,0.98638345,3134.3,3133.8,3.44195057]
[1768303954827,4.89005623,3134.4,3133.8,3.44195057]
[1768303955128,5.88026783,3134.4,3133.8,3.44195057]
[1768303957227,0.9902116,3134.4,3133.8,3.44195057]
[1768303957453,0.9902116,3134.4,3133.8,6.63296467]
[1768303957597,0.001,3134.5,3133.8,7.55642171]
[1768303960427,0.001,3134.5,3133.8,4.36540761]
[1768303960942,0.9912116,3134.5,3133.8,4.36540761]
[1768303963445,0.9912116,3134.5,3134.1,0.002]
[1768303963643,4.18152557,3134.5,3134.1,0.002]